[Event "Croatian Team Cup Final 2022"]
[Site "Vodice"]
[Date "2022.05.18"]
[Round "1.1"]
[White "Pavic, Filip"]
[Black "Saric, Ivan"]
[Result "0-1"]
[ECO "B52"]
[WhiteElo "2270"]
[BlackElo "2693"]
[Annotator "TA"]
[PlyCount "110"]
[EventDate "2022.05.18"]
[EventType "team-tourn"]
[EventCountry "CRO"]
[SourceTitle "playchess.com"]
[Source "ChessBase"]
[SourceQuality "1"]
[TimeControl "40/5400+30:1800+30"]

{[%evp 16,110,19,21,23,21,17,17,11,7,18,-13,0,-20,-24,-18,-21,-25,-25,-24,-24,-43,-54,-227,-223,-223,-239,-234,-230,-227,-204,-200,-227,-250,-250,-242,-234,-227,-227,-227,-227,-227,-231,-233,-233,-255,-239,-264,-233,-233,-233,-288,-288,-288,-215,-215,-215,-215,-215,-215,-215,-310,-298,-323,-285,-504,-504,-475,-467,-719,-668,-724,-709,-646,-630,-665,-629,-2890,-2358,-4137,-4133,-3125,-2557,-29942,-12200,-12809,-8015,-29960,-29961,-29958,-29963,-29969,-29969,-29970,-29966,-6942,-5539]} 1. e4 {[%emt 0:00:03]} c5 {[%emt 0:00:06]} 2. Nf3 {[%emt 0:00:07]} d6 {[%emt 0:00:57]} 3. Bb5+ {[%emt 0:00:07]} Bd7 {[%emt 0:00:30]} 4. Bxd7+ {[%emt 0:00:08]} Nxd7 {[%emt 0:00:04]} 5. O-O {[%emt 0:05:35]} Ngf6 {[%emt 0:00:59]} 6. Qe2 {[%emt 0:02:53]} e6 {[%emt 0:00:21]} 7. c3 {[%emt 0:00:34]} Be7 {[%emt 0:00:21]} 8. d4 {[%emt 0:01:51]} O-O {[%emt 0:02:23]} 9. Rd1 {[%emt 0:15:21]} cxd4 {[%emt 0:02:22] B52: Sicilian: Moscow Variation with 3...Bd7.} 10. cxd4 {[%emt 0:00:45]} Rc8 {[%emt 0:01:53]} 11. Nc3 {[%emt 0:01:30]} Nb6 {[%emt 0:00:04] The position is equal.} 12. Rd3 {[%emt 0:12:43] [#]} Qd7 $146 {[%emt 0:03:22]} ({Predecessor:} 12... Qc7 13. h4 Qc6 14. a4 Rfd8 15. d5 exd5 16. exd5 Qd7 17. Be3 Re8 18. Bxb6 axb6 19. Re3 Ng4 20. Re4 Bf6 21. Re1 Rxe4 22. Nxe4 h6 23. b3 Bc3 24. Rc1 {½-½ (24) Supi,L (2572)-Quintiliano Pinto,R (2469) Cuiaba 2021}) 13. Bf4 {[%emt 0:06:30][%cal Of3e5]} Na4 {[%emt 0:03:06]} 14. Nxa4 {[%emt 0:08:11]} Qxa4 {[%emt 0:00:07]} 15. Ra3 {[%emt 0:04:00]} Qc2 {[%emt 0:00:04]} 16. Qxc2 {[%emt 0:01:45]} Rxc2 {[%emt 0:00:04]} 17. Rxa7 {[%emt 0:11:20]} Rxb2 {[%emt 0:00:05]} 18. Nd2 {[%emt 0:02:51]} Rc8 {[%emt 0:08:31][%cal Oe6e5,Bf8c8,Bc8c4,Bc4d4][%mdl 32]} 19. Nc4 $2 {[%emt 0:02:20] Prevents e5. This costs White the game.} Rxc4 $19 {[%emt 0:01:55]} 20. Ra8+ {[%emt 0:00:13]} Bf8 {[%emt 0:00:03]} 21. Bxd6 {[%emt 0:00:05][%csl Gd6][%cal Ra8f8]} Nd7 {[%emt 0:00:12]} 22. Rd8 {[%emt 0:00:05] [#]} Rd2 $1 {[%emt 0:04:07][%cal Oc4d4]} 23. e5 {[%emt 0:04:15] [#]} Rcxd4 $1 {[%emt 0:00:06]} 24. g3 {[%emt 0:02:08] [#]} (24. f4 Rxd6) 24... f6 $1 {[%emt 0:00:59][%cal Of6e5]} 25. f4 {[%emt 0:02:03]} Rxd6 {[%emt 0:07:42]} 26. exd6 {[%emt 0:00:06]} Rxd6 {[%emt 0:01:27]} 27. Rc1 {[%emt 0:04:49]} Kf7 $1 {[%emt 0:01:10]} 28. Rc7 {[%emt 0:01:13]} Ke7 {[%emt 0:00:03]} 29. Rb8 {[%emt 0:02:10] [#]} b6 {[%emt 0:00:13]} 30. Kg2 {[%emt 0:03:02]} e5 {[%emt 0:04:53]} 31. f5 {[%emt 0:02:24]} Rd2+ {[%emt 0:08:07]} 32. Kf3 {[%emt 0:01:40]} Rxa2 {[%emt 0:00:37]} 33. Rxb6 {[%emt 0:03:39]} Kd8 {[%emt 0:00:28]} 34. Rbb7 {[%emt 0:00:20]} Ra3+ {[%emt 0:05:34]} 35. Ke2 {[%emt 0:00:15]} Nc5 {[%emt 0:00:04]} 36. Ra7 {[%emt 0:00:17]} Rxa7 {[%emt 0:00:11]} 37. Rxa7 {[%emt 0:00:02]} Ne4 {[%emt 0:02:47]} 38. g4 {[%emt 0:01:36]} (38. Ra8+ $142 Ke7 39. Kd3) 38... Ke8 {[%emt 0:00:13]} 39. Ra8+ {[%emt 0:00:31]} Kf7 {[%emt 0:00:05] And now ...g6 would win.} 40. Ke3 $2 {[%emt 0:00:00] [#]} (40. Ra7+ Be7 41. Ra8) 40... Nd6 $1 {[%emt 0:00:00]} 41. Ra7+ {[%emt 0:09:07]} Be7 {[%emt 0:01:02]} 42. h4 {[%emt 0:01:35]} (42. Ra8 $142 g6 43. fxg6+ hxg6 44. g5) 42... h5 {[%emt 0:00:29]} 43. Kf3 {[%emt 0:00:21]} e4+ {[%emt 0:02:25]} 44. Kf4 {[%emt 0:00:37]} hxg4 {[%emt 0:00:04]} 45. Ra2 {[%emt 0:11:13]} Nb5 {[%emt 0:02:37]} 46. Rb2 {[%emt 0:01:59]} Bd6+ {[%emt 0:02:34]} 47. Kxe4 {[%emt 0:01:30]} Nc3+ {[%emt 0:00:29]} 48. Kd3 {[%emt 0:01:29]} Be5 {[%emt 0:00:16] aiming for ...g3.} 49. Rb7+ {[%emt 0:01:27]} Kg8 {[%emt 0:00:05] ( -> ...Kh7)} 50. Ke3 {[%emt 0:02:37]} Nd5+ {[%emt 0:00:34]} 51. Ke4 {[%emt 0:00:51]} Nf4 {[%emt 0:00:27]} 52. Rb3 {[%emt 0:00:37]} Ne2 {[%emt 0:00:41]} 53. Rd3 {[%emt 0:01:30]} Ng3+ {[%emt 0:00:08]} 54. Kd5 {[%emt 0:00:57]} Nxf5 {[%emt 0:00:07]} 55. h5 {[%emt 0:00:10]} g3 {[%emt 0:00:04] Weighted Error Value: White=0.66/Black=0.03 (flawless)} 0-1

[Event "Croatian Team Cup Final 2022"]
[Site "Vodice"]
[Date "2022.05.18"]
[Round "1.2"]
[White "Markus, Robert"]
[Black "Pavic, Jakov"]
[Result "1-0"]
[ECO "E07"]
[WhiteElo "2613"]
[BlackElo "2176"]
[Annotator "TA"]
[PlyCount "71"]
[EventDate "2022.05.18"]
[EventType "team-tourn"]
[EventCountry "CRO"]
[SourceTitle "playchess.com"]
[Source "ChessBase"]
[SourceQuality "1"]
[TimeControl "40/5400+30:1800+30"]

{[%evp 21,71,33,39,27,60,85,139,145,145,136,224,150,458,471,454,439,774,764,758,747,1268,1268,1268,1268,1235,1235,1202,1187,1159,1151,1023,956,949,943,913,908,878,658,6272,6249,6137,5920,29985,29984,29982,29965,29962,29958,6411,5939,1881,2947]} 1. d4 {[%emt 0:00:05]} d5 {[%emt 0:00:06]} 2. c4 {[%emt 0:00:09]} e6 {[%emt 0:00:04]} 3. Nf3 {[%emt 0:00:14]} Nf6 {[%emt 0:00:08]} 4. g3 {[%emt 0:00:05]} c6 {[%emt 0:02:08]} 5. Bg2 {[%emt 0:00:47]} Nbd7 {[%emt 0:01:27]} 6. O-O {[%emt 0:01:24]} Be7 {[%emt 0:00:21]} 7. b3 {[%emt 0:02:10]} O-O {[%emt 0:00:31]} 8. Nc3 {[%emt 0:00:06]} b6 {[%emt 0:02:08]} 9. Bb2 {[%emt 0:00:51]} Ba6 {[%emt 0:02:18]} 10. Nd2 {[%emt 0:02:18]} Rc8 {[%emt 0:01:37] 10...b5 is more advanced technology.} 11. e4 {[%emt 0:01:50]} dxe4 {[%emt 0:00:47]} 12. Ncxe4 {[%emt 0:10:11] E07: Closed Catalan: Main Line (5 Nf3 0-0 6 0-0 Nbd7).} c5 {[%emt 0:08:01]} 13. dxc5 {[%emt 0:05:42] [#]} Nxe4 $146 {[%emt 0:03:01]} (13... bxc5 $142 14. f4 Qb6) ({Predecessor:} 13... Nxc5 14. Nxc5 Bxc5 15. Bxf6 Qxf6 16. Ne4 Qe7 17. Nxc5 bxc5 18. Qf3 Rfd8 19. Rfd1 g6 {½-½ (88) Gurevich,D (2401)-Terzi,A (2285) Chess.com INT 2019}) 14. Nxe4 $16 {[%emt 0:00:40] White is clearly better.} ({Much weaker is} 14. Bxe4 Nxc5 15. Qe2 (15. Qg4 Bf6 $11) 15... Bf6 16. Bxf6 Qxf6 $11) 14... bxc5 {[%emt 0:05:14] [#]} 15. Qg4 $1 {[%emt 0:03:18][%csl Gb2][%cal Rg4g7] White is much more active.} g6 {[%emt 0:03:42]} (15... Bf6 $16 16. Nxf6+ Nxf6) 16. Rad1 {[%emt 0:06:48] aiming for Qf4.} f5 $2 {[%emt 0:05:54]} (16... Bb7 $16 {is a better chance.}) 17. Qe2 $18 {[%emt 0:04:15]} ({Less strong is} 17. Qh3 Qc7 18. Rfe1 (18. Qh6 Rf7 $16) 18... Rce8 $16) 17... fxe4 {[%emt 0:18:41]} 18. Qxe4 {[%emt 0:00:08]} Qb6 {[%emt 0:10:18]} (18... Rf7 $142 19. Qxe6 Qb6 20. Qxd7 Rd8) 19. Rxd7 {[%emt 0:00:24]} Rce8 {[%emt 0:06:17]} 20. Bh3 {[%emt 0:02:35]} Bf6 {[%emt 0:03:09]} 21. Bxf6 {[%emt 0:00:43]} Rxf6 {[%emt 0:00:03]} 22. Qh4 {[%emt 0:00:16][%csl LRf6,LRh7]} Rf7 {[%emt 0:00:53]} 23. Rxf7 {[%emt 0:00:07]} Kxf7 {[%emt 0:00:01]} 24. Qxh7+ {[%emt 0:00:08]} Kf6 {[%emt 0:00:18]} 25. Rd1 {[%emt 0:00:18]} Bc8 {[%emt 0:07:51] Prevents Rd7.} 26. Bg2 {[%emt 0:02:58] [#] Be4 is the strong threat.} Rd8 {[%emt 0:06:55]} 27. Qh4+ {[%emt 0:00:20]} g5 {[%emt 0:00:03]} 28. Qh6+ {[%emt 0:00:06]} Kf7 {[%emt 0:00:13]} 29. Rf1 {[%emt 0:01:35] And now f4 would win.} Rg8 {[%emt 0:01:23]} 30. f4 {[%emt 0:00:28] White threatens Qh7+ and mate.} g4 {[%emt 0:06:41]} 31. f5 {[%emt 0:00:12][%cal Bf4f5,Bf5f6,Bf6f7][%mdl 32]} Ke8 {[%emt 0:00:50]} 32. f6 {[%emt 0:02:39]} Rf8 {[%emt 0:01:05]} 33. Qg6+ {[%emt 0:00:10]} Rf7 {[%emt 0:00:39]} 34. Qg8+ {[%emt 0:00:12]} Rf8 {[%emt 0:00:08]} 35. f7+ {[%emt 0:00:05]} Ke7 {[%emt 0:00:06]} 36. Qg5+ {[%emt 0:00:04] Black got outplayed after the opening.  Weighted Error Value: White=0.35/Black=0.71} 1-0

[Event "Croatian Team Cup Final 2022"]
[Site "Vodice"]
[Date "2022.05.18"]
[Round "1.3"]
[White "Dejanovic, Mladen"]
[Black "Jovanic, Ognjen"]
[Result "0-1"]
[ECO "B22"]
[WhiteElo "2050"]
[BlackElo "2509"]
[Annotator "TA"]
[PlyCount "134"]
[EventDate "2022.05.18"]
[EventType "team-tourn"]
[EventCountry "CRO"]
[SourceTitle "playchess.com"]
[Source "ChessBase"]
[SourceQuality "1"]
[TimeControl "40/5400+30:1800+30"]

{[%evp 15,134,0,20,0,18,22,19,7,9,14,9,-8,0,-21,-22,-31,-32,-61,-34,-52,-29,-85,-85,-83,-73,-81,-52,-127,-124,-139,-114,-278,-224,-224,-224,-224,-200,-228,-220,-225,-221,-230,-226,-223,-221,-262,-228,-287,-216,-243,-177,-177,-177,-261,-251,-614,-389,-407,-405,-391,-302,-307,-307,-305,-304,-301,-295,-337,-325,-315,-302,-465,-454,-440,-416,-532,-504,-441,-416,-1610,-1610,-1359,-1360,-1371,-1396,-1350,-1316,-1192,-79,-79,-79,-79,-79,-1273,-768,-29973,-29974,-29974,0,-29972,-29976,-29976,-29977,-29977,-29977,-29977,-29977,-29977,-29976,-29977,-29978,-29978,-29979,-29979,-29980,-29980,-29981,-29983,-29984,-29984,-29985]} 1. e4 {[%emt 0:00:07]} c5 {[%emt 0:00:15]} 2. c3 {[%emt 0:00:04]} Nf6 {[%emt 0:01:22]} 3. e5 {[%emt 0:00:06]} Nd5 {[%emt 0:00:11]} 4. d4 {[%emt 0:00:10]} cxd4 {[%emt 0:00:59]} 5. Nf3 {[%emt 0:00:25]} d6 {[%emt 0:01:17]} 6. cxd4 {[%emt 0:00:43]} Nc6 {[%emt 0:01:00]} 7. Bc4 {[%emt 0:00:28]} Nb6 {[%emt 0:03:05]} 8. Bb5 {[%emt 0:00:15]} Bd7 {[%emt 0:03:49]} 9. Qe2 {[%emt 0:01:34] B22: Sicilian: 2 c3.} dxe5 {[%emt 0:03:30]} 10. dxe5 {[%emt 0:01:02]} g6 {[%emt 0:01:37]} 11. O-O {[%emt 0:06:27] The position is equal.} Bg7 {[%emt 0:00:15]} 12. Nc3 {[%emt 0:00:31]} O-O {[%emt 0:00:54]} 13. Bf4 {[%emt 0:03:26]} a6 {[%emt 0:04:21]} 14. Bd3 {[%emt 0:09:36]} (14. Bxc6 $5 Bxc6 15. Rfd1 $11) 14... Bg4 {[%emt 0:02:00][%cal Og7e5] [#]} 15. Rad1 $146 {[%emt 0:07:19][%cal Od3g6]} ({Predecessor:} 15. Be4 Nd4 16. Qd1 Ne6 17. Be3 Nc4 18. Bxb7 Rb8 19. Bxa6 Nxe3 20. Qxd8 Rfxd8 21. fxe3 Rxb2 {½-½ (57) Mitusov,S (2332)-Kaasen,T (2461) Kvisla 2022}) 15... Qc7 {[%emt 0:04:19]} 16. Rfe1 {[%emt 0:05:16]} Rad8 {[%emt 0:07:37][%cal Ba8d8,Bd8d5,Bd5a5][%mdl 32]} 17. h3 {[%emt 0:16:45]} Bxf3 {[%emt 0:06:21]} 18. gxf3 {[%emt 0:01:00]} (18. Qxf3 $11 Bxe5 19. Bxe5 Nxe5 20. Qf4) 18... Nd5 {[%emt 0:03:15]} (18... Qc8 {is interesting.} 19. Bg3 Qxh3 20. f4 Rd7) 19. Nxd5 {[%emt 0:14:34]} Rxd5 {[%emt 0:00:04]} 20. Rc1 {[%emt 0:05:17]} Ra5 {[%emt 0:08:47]} 21. a3 {[%emt 0:13:51]} (21. b4 $15 Ra4 22. Be4) 21... Qd7 $17 {[%emt 0:01:47] ...Nxe5 is the strong threat.} 22. e6 {[%emt 0:01:14]} Qxe6 {[%emt 0:03:19]} 23. Be4 $2 {[%emt 0:04:19]} (23. Qxe6 $17 fxe6 24. Bc7 Rg5+ 25. Kf1) 23... Nd4 {[%emt 0:03:14]} 24. Qf1 {[%emt 0:00:56]} Qf6 {[%emt 0:00:39]} 25. Bg3 {[%emt 0:00:33]} Rb5 {[%emt 0:01:47]} 26. b4 {[%emt 0:01:17]} Nxf3+ {[%emt 0:01:29]} 27. Bxf3 {[%emt 0:00:07]} Qxf3 {[%emt 0:00:02]} 28. Re3 {[%emt 0:00:18]} Qf6 {[%emt 0:00:46]} 29. Rc7 {[%emt 0:00:17]} e6 {[%emt 0:05:54]} 30. Qg2 {[%emt 0:00:22]} b6 {[%emt 0:05:56]} 31. Rb7 {[%emt 0:00:15]} Qa1+ {[%emt 0:02:02]} 32. Kh2 {[%emt 0:00:01]} Be5 {[%emt 0:00:37]} 33. Bxe5 {[%emt 0:02:54]} Rxe5 {[%emt 0:00:02]} 34. Qg3 {[%emt 0:00:08]} (34. Qg1 $142 Qb2 35. Rxe5 Qxe5+ 36. Qg3) 34... Rb5 {[%emt 0:04:05]} 35. Qc7 $2 {[%emt 0:01:31]} (35. Rc7) 35... Qf6 {[%emt 0:01:23]} 36. Kg2 {[%emt 0:01:42]} Rf5 {[%emt 0:00:46]} 37. Qc2 {[%emt 0:00:21]} Qd4 {[%emt 0:01:18]} 38. Rc7 {[%emt 0:02:01]} Rd8 {[%emt 0:00:51]} 39. Rc8 {[%emt 0:00:48]} Qd5+ {[%emt 0:01:06]} 40. Kg1 {[%emt 0:00:00]} Rg5+ {[%emt 0:00:00]} 41. Rg3 {[%emt 0:12:03]} Rxg3+ {[%emt 0:03:02]} 42. fxg3 {[%emt 0:00:02]} a5 {[%emt 0:00:45]} 43. bxa5 {[%emt 0:03:34]} (43. Rxd8+ $142 Qxd8 44. Qc3) 43... bxa5 $19 {[%emt 0:00:04]} 44. Rxd8+ {[%emt 0:01:08]} Qxd8 {[%emt 0:00:02][%mdl 4096] Endgame KQ-KQ} 45. a4 {[%emt 0:00:11]} Qd4+ {[%emt 0:00:11]} 46. Kg2 {[%emt 0:00:12]} e5 {[%emt 0:00:37][%cal Be6e5,Be5e4][%mdl 32]} 47. h4 {[%emt 0:00:58]} (47. Kf3 $142) 47... h5 {[%emt 0:00:08]} 48. Qc6 {[%emt 0:01:44]} e4 {[%emt 0:00:37]} 49. Qa8+ {[%emt 0:00:11]} Kh7 $1 {[%emt 0:04:33]} 50. Qxa5 {[%emt 0:00:31]} Qb2+ {[%emt 0:00:02]} 51. Kf1 {[%emt 0:00:44]} Qb1+ $2 {[%emt 0:00:38]} (51... Qc1+ $19 52. Qe1 Qc4+ 53. Kf2 Qxa4) 52. Qe1 $17 {[%emt 0:07:14]} Qd3+ {[%emt 0:00:04]} 53. Qe2 {[%emt 0:00:06] And now Qxd3 would win.} Qd5 {[%emt 0:02:31] Black is more active.} 54. a5 $2 {[%emt 0:04:45][%mdl 8192]} (54. Kg1 $17) 54... Qxa5 $19 {[%emt 0:04:34]} 55. Qxe4 {[%emt 0:00:00]} Qf5+ $1 {[%emt 0:00:43]} 56. Qxf5 {[%emt 0:00:01]} gxf5 {[%emt 0:00:01] K3P-KPP} 57. Kf2 $2 {[%emt 0:00:11][%mdl 8192] [#]} (57. Kg2 $11 f4 58. gxf4 Kg6 59. Kg3 Kf5 60. Kf3 f6 61. Kg3 Ke4 62. f5 Kxf5 63. Kf3 Ke5 64. Kg3 f5 65. Kf3 f4 66. Kf2 Ke4 67. Ke2 f3+ 68. Kf1 Kf4 69. Kf2 Kg4 70. Kf1 Kxh4 71. Kf2 Kg4 72. Kf1 h4 73. Kf2 h3 74. Kg1 Kf4 75. Kf1 Ke3 76. Kg1 f2+ 77. Kf1 h2 78. Kg2 h1=Q+ 79. Kxh1 Kf3 80. Kh2 f1=R 81. Kh3 Rh1#) 57... f4 $1 {[%emt 0:00:10] Black mates.} 58. gxf4 {[%emt 0:00:13] KPP-KPP} Kg6 {[%emt 0:00:07]} 59. Kg3 {[%emt 0:05:07]} Kf6 {[%emt 0:00:07]} 60. Kf2 {[%emt 0:00:26]} Ke6 {[%emt 0:00:24]} 61. Ke2 {[%emt 0:00:19]} Kd5 {[%emt 0:01:53]} 62. Kd3 {[%emt 0:00:08] [#]} f5 $1 {[%emt 0:00:11]} 63. Ke3 {[%emt 0:00:25]} Kc4 {[%emt 0:00:01]} 64. Ke2 {[%emt 0:03:05]} Kd4 {[%emt 0:00:02]} 65. Kd2 {[%emt 0:00:05]} Ke4 {[%emt 0:00:04]} 66. Ke2 {[%emt 0:00:00]} Kxf4 {[%emt 0:00:15]} 67. Kf2 {[%emt 0:00:44]} Kg4 {[%emt 0:00:01] Weighted Error Value: White=0.77/Black=0.25 (precise)} 0-1

[Event "Croatian Team Cup Final 2022"]
[Site "Vodice"]
[Date "2022.05.18"]
[Round "1.4"]
[White "Srbis, Jurica"]
[Black "Kos, Bruno"]
[Result "1-0"]
[ECO "B01"]
[WhiteElo "2451"]
[BlackElo "1998"]
[Annotator "TA"]
[PlyCount "47"]
[EventDate "2022.05.18"]
[EventType "team-tourn"]
[EventCountry "CRO"]
[SourceTitle "playchess.com"]
[Source "ChessBase"]
[SourceQuality "1"]
[TimeControl "40/5400+30:1800+30"]

{[%evp 9,47,46,64,44,52,39,55,65,75,20,72,41,85,89,78,82,90,59,156,163,153,137,273,256,274,276,279,269,572,575,711,695,620,488,1064,1050,947,885,1264,1645]} 1. e4 {[%emt 0:00:04]} d5 {[%emt 0:00:12]} 2. exd5 {[%emt 0:00:17]} Qxd5 {[%emt 0:00:21]} 3. Nc3 {[%emt 0:00:18]} Qd6 {[%emt 0:01:09]} 4. d4 {[%emt 0:00:16]} Nf6 {[%emt 0:01:06]} 5. Nf3 {[%emt 0:00:27]} c6 {[%emt 0:00:53]} 6. g3 {[%emt 0:03:42][%cal Bg2g3,Bg3g4][%mdl 32] B01: Scandinavian Defence.} Bf5 {[%emt 0:01:37]} 7. Bg2 {[%emt 0:01:23]} Nbd7 {[%emt 0:02:09]} 8. O-O {[%emt 0:01:20] White is slightly better.} e6 {[%emt 0:00:35]} 9. a3 {[%emt 0:03:19]} (9. Nh4 $16 Bg4 10. f3) 9... Nb6 {[%emt 0:09:34] [#]} (9... Qc7 $11) 10. Ne5 $146 {[%emt 0:08:31]} ({Predecessor:} 10. Bf4 Qd8 11. Nh4 Bg4 12. Qd3 h6 13. Bd2 g5 14. Nf3 Bf5 15. Qe2 Bxc2 16. Bxg5 Bb3 17. Bxf6 Qxf6 18. Ne4 Qe7 19. Qd2 O-O-O 20. Qa5 Kb8 21. Qe5+ {1-0 (21) Young,D (1768)-Van der Veen,A England 2014}) 10... Be7 {[%emt 0:08:42]} 11. g4 {[%emt 0:03:57]} Bg6 {[%emt 0:01:29]} 12. h4 {[%emt 0:02:39][%cal Bh2h4,Bh4h5][%mdl 32]} Nfd5 {[%emt 0:14:50] Prevents Bf4.} 13. Nxd5 {[%emt 0:02:45]} cxd5 {[%emt 0:06:54]} ({Black should play} 13... exd5 $14 14. Bf4 Bxh4) 14. Bf4 $36 {[%emt 0:07:34][%mdl 2048] White has strong initiative.} Qd8 {[%emt 0:03:23]} 15. h5 {[%emt 0:02:15] White is more active.} Be4 {[%emt 0:01:17]} (15... f6 $16 {is a better defense.}) 16. f3 $18 {[%emt 0:01:44]} f6 {[%emt 0:01:19]} 17. fxe4 {[%emt 0:00:29]} fxe5 {[%emt 0:00:49]} 18. Bxe5 {[%emt 0:00:15]} Rg8 $2 {[%emt 0:21:04]} (18... Bf6 19. Bxf6 gxf6) 19. exd5 {[%emt 0:05:06] White is clearly winning.} exd5 {[%emt 0:06:02]} 20. Qf3 {[%emt 0:06:58] [#] Qf7+ is the strong threat.} Rf8 {[%emt 0:05:46] Against Qf7+} 21. Qe2 {[%emt 0:00:40]} Rg8 {[%emt 0:01:03]} (21... Qd7 $142 22. Bxg7 Rg8) 22. Rae1 {[%emt 0:02:02]} Qd7 {[%emt 0:01:10]} 23. Bg3 {[%emt 0:03:28] aiming for g5. This bishop pair is nice.} Nc8 {[%emt 0:01:31]} 24. Rf5 {[%emt 0:00:27] Weighted Error Value: White=0.20 (precise) /Black=0.45} 1-0

[Event "Croatian Team Cup Final 2022"]
[Site "Vodice"]
[Date "2022.05.18"]
[Round "1.5"]
[White "Kozul, Zdenko"]
[Black "Brigljevic, Milan"]
[Result "1-0"]
[ECO "A41"]
[WhiteElo "2621"]
[BlackElo "2211"]
[Annotator "TA"]
[PlyCount "61"]
[EventDate "2022.05.18"]
[EventType "team-tourn"]
[EventCountry "CRO"]
[SourceTitle "playchess.com"]
[Source "ChessBase"]
[SourceQuality "1"]
[TimeControl "40/5400+30:1800+30"]

{[%evp 9,61,49,53,61,78,82,84,63,77,77,75,77,77,63,66,62,82,22,117,122,113,113,153,160,167,169,168,170,175,166,168,158,209,147,152,162,230,239,245,250,238,262,253,232,236,239,317,288,362,369,371,368,393,408]} 1. d4 {[%emt 0:00:12]} d6 {[%emt 0:00:09]} 2. Nf3 {[%emt 0:00:25]} Bg4 {[%emt 0:01:35]} 3. c4 {[%emt 0:01:02]} c6 {[%emt 0:01:22]} 4. Nc3 {[%emt 0:00:15]} Nd7 {[%emt 0:01:46]} 5. d5 {[%emt 0:04:03]} Ngf6 {[%emt 0:02:55]} 6. Nd4 {[%emt 0:05:45] And now h3 would win. A41: 1 d4 d6: Tartakower System and Modern Defence.} c5 {[%emt 0:00:38]} 7. Nc2 {[%emt 0:00:47] [#] White is more active.} Bf5 $146 {[%emt 0:01:19]} ({Predecessor:} 7... Nb6 8. f3 Bc8 9. e4 g6 10. Be2 Bg7 11. O-O O-O 12. a4 e5 13. a5 Nbd7 {0-1 (57) Martynov,R (2284)-Plat,V (2471) Krakow 2015}) 8. Ne3 {[%emt 0:02:02] White is better.} Bg6 {[%emt 0:00:08]} 9. g3 {[%emt 0:16:40]} e5 {[%emt 0:06:19]} 10. dxe6 {[%emt 0:00:15]} fxe6 {[%emt 0:00:08]} 11. Bh3 {[%emt 0:00:20]} Bf7 {[%emt 0:10:37]} 12. O-O {[%emt 0:04:42]} Be7 {[%emt 0:11:18]} 13. Ng2 {[%emt 0:06:35]} (13. b3 $16) 13... Nb6 {[%emt 0:02:55]} (13... d5 $11 {remains equal.}) 14. Nf4 $16 {[%emt 0:03:41][%cal Bg2f4,Bf4d3,Bd3e5][%mdl 32]} Qd7 {[%emt 0:00:00]} 15. b3 (15. Ncd5 {feels hotter.} Bd8 16. b3 Ne4 17. Nxb6 Bxb6 18. Bb2) 15... O-O {[%emt 0:03:32]} 16. e4 Rfe8 {[%emt 0:05:08]} 17. Bb2 Bd8 {[%emt 0:08:55]} 18. Nd3 {[%emt 0:10:39]} Bh5 {[%emt 0:01:15]} 19. f3 {[%emt 0:04:08]} Bg6 {[%emt 0:08:09]} 20. Re1 {[%emt 0:03:19]} Bc7 {[%emt 0:00:47]} (20... Qc6 $16 21. e5 Bxd3) 21. e5 dxe5 {[%emt 0:00:32]} 22. Nxe5 {[%emt 0:00:01]} ({Weaker is} 22. Nxc5 Qc6 23. N5e4 Nxc4 24. bxc4 (24. Nxf6+ gxf6 25. bxc4 Qb6+ 26. c5 Qxb2 $15) 24... Nxe4 25. Nxe4 Qb6+ 26. Kh1 Qxb2 $11) 22... Qxd1 (22... Bxe5 {was worth a try.} 23. Rxe5 Rad8 24. Qxd7 (24. Rxc5 $2 Qe7 $19) 24... Nbxd7 25. Bxe6+ (25. Rxe6 Ne5 $16) 25... Kh8) 23. Raxd1 $18 Bf5 24. g4 {[%emt 0:01:50]} Bxe5 {[%emt 0:06:53]} 25. Rxe5 {[%emt 0:00:05]} Nfd7 26. Re2 Bg6 27. Nb5 {[%cal Bc3b5,Bb5d6,Bd6b7][%mdl 32] aiming for Nc7.} Rf8 28. Bg2 {[%emt 0:01:53]} Rae8 {[%emt 0:00:26]} 29. Nd6 {[%emt 0:04:26] White is winning.} ({Not} 29. Nxa7 Ra8 $18) 29... Re7 {[%emt 0:03:42]} 30. Nxb7 {[%emt 0:01:37]} e5 {[%emt 0:04:59]} 31. Ba3 {Weighted Error Value: White=0.10 (very precise) /Black=0.22 (precise)} 1-0